bitfinex/quotes_ETHUSD_20250725
["timestamp","ask_amount","ask_price","bid_price","bid_amount"]
[1753452306061,0.49726561,3695.0,3694.9,2.70643319]
[1753452306265,0.49726561,3695.0,3694.9,3.19633319]
[1753452306462,0.49726561,3695.0,3694.9,3.33153319]
[1753452307161,0.49719695,3695.5,3694.9,0.1352]
[1753452307367,0.49703194,3695.4,3694.9,0.1352]
[1753452307549,0.49703194,3695.4,3694.1,0.4732]
[1753452307550,0.1352,3695.0,3694.5,0.1352]
[1753452307750,0.24851399,3694.9,3694.5,0.1352]
[1753452308088,0.24851399,3694.8,3694.4,4.688]
[1753452308308,0.24852334,3694.7,3694.4,4.688]
[1753452308503,0.24851795,3695.1,3694.5,0.02706726]
[1753452308705,0.49709284,3695.0,3694.5,2.70671772]
[1753452309005,0.24857489,3694.9,3694.5,2.70671864]
[1753452309213,3.0,3695.8,3694.9,2.70642876]
[1753452309371,3.0,3695.8,3694.8,0.7649]
[1753452309372,0.24859275,3695.7,3694.8,0.7649]
[1753452309565,0.24859275,3695.6,3695.0,2.70629552]
[1753452309816,0.24859275,3695.5,3695.0,0.02706359]
[1753452310015,0.24859275,3695.5,3695.4,2.706067]
[1753452310167,1.2319067,3695.9,3695.8,2.70577412]
[1753452310518,1.48063762,3695.9,3695.8,4.49567412]
[1753452310664,0.24873092,3695.9,3695.8,4.49567412]
[1753452311509,0.24873092,3695.9,3695.8,1.3167]
[1753452311725,0.24873092,3695.9,3695.8,0.8268]
[1753452311900,0.24873092,3695.9,3695.8,4.676]
[1753452312073,1.15483092,3695.9,3695.2,4.674]
[1753452312276,0.24873092,3695.8,3695.2,7.38020364]
[1753452312571,0.24873092,3695.8,3694.8,0.8291]
[1753452312572,0.24873092,3695.7,3694.8,0.8291]
[1753452312797,2.70622005,3695.2,3694.5,2.70666518]
[1753452313113,0.24873092,3695.1,3694.5,2.70667056]
[1753452313310,0.24873092,3695.1,3694.4,5.4707]
[1753452313311,0.2490499,3695.0,3694.4,5.4707]
[1753452313613,0.24873146,3695.3,3694.7,2.70657108]
[1753452313772,0.24873146,3695.3,3694.5,0.02706726]
[1753452313773,0.24904538,3695.2,3694.6,2.70665217]
[1753452313968,0.24904538,3695.1,3694.5,0.02706726]
[1753452314192,0.24904538,3695.0,3694.7,2.70657255]
[1753452314407,0.24904538,3694.9,3694.6,2.70663225]
[1753452314583,0.24873146,3695.3,3694.7,0.51696579]
[1753452314786,0.24915653,3695.2,3694.9,2.70640082]
[1753452314987,0.49791487,3695.6,3695.1,2.70627227]
[1753452315201,0.4455,3695.6,3694.9,0.4899]
[1753452315514,0.4455,3695.6,3695.2,2.70620736]
[1753452315713,0.4987041,3695.6,3695.5,2.70599377]
[1753452315935,0.4987041,3696.0,3695.5,0.9631]
[1753452316113,0.4987041,3695.9,3695.4,2.70599649]
[1753452316430,2.70491886,3697.0,3694.9,0.7562]
[1753452316431,0.49921154,3695.8,3695.5,4.667]
[1753452316731,0.24958417,3695.7,3695.5,4.667]
[1753452316881,0.49914561,3695.6,3695.5,4.667]
[1753452317295,0.64887165,3695.6,3695.5,7.86289377]
[1753452317579,0.49914561,3695.6,3695.5,4.667]
[1753452317788,0.64887165,3695.6,3695.5,4.667]
[1753452318313,0.64887165,3695.6,3695.4,4.7962]
[1753452318521,0.64887165,3695.5,3695.4,7.502267]
[1753452318732,0.64887165,3695.5,3695.4,7.975467]
[1753452318884,0.64887165,3695.5,3695.4,8.72839991]
[1753452319080,0.64887165,3695.5,3695.4,9.21829991]
[1753452319283,2.40225847,3696.9,3695.6,0.8124]
[1753452319529,0.4455,3697.0,3695.7,5.6201]
[1753452319741,0.55,3696.8,3695.8,5.60025]
[1753452320042,2.70524259,3696.6,3695.9,4.657]
[1753452320247,2.84044259,3696.6,3696.1,0.1352]
[1753452320624,1.0413,3696.6,3696.1,0.1352]
[1753452321147,0.4455,3696.5,3696.1,0.1352]
[1753452321306,3.61136759,3696.5,3696.1,0.1352]
[1753452321505,0.9061,3696.5,3696.1,0.1352]
[1753452321847,0.1352,3696.6,3696.1,0.1352]
[1753452322008,2.84039535,3696.6,3696.1,0.1352]
[1753452322223,0.5807,3696.6,3696.1,0.1352]
[1753452322423,0.1352,3696.6,3696.1,1.10432]
[1753452322653,0.1352,3696.9,3696.1,0.96912]
[1753452322820,0.1352,3696.9,3696.3,0.1352]
[1753452323176,1.2351,3697.3,3696.4,0.02705334]
[1753452323365,1.2351,3697.3,3696.8,2.84020187]
[1753452323366,0.7745,3697.3,3696.8,2.84020187]
[1753452323738,0.7745,3697.3,3696.9,2.70491035]
[1753452323938,0.7745,3697.3,3696.8,0.1352]
[1753452324175,0.1352,3697.6,3697.2,2.70474373]
[1753452324767,2.70429776,3697.9,3697.3,0.4899]
[1753452324768,2.40225847,3697.9,3697.3,0.4899]
[1753452325071,2.40225847,3698.0,3697.5,0.1352]
[1753452325252,5.10646345,3698.0,3697.5,0.1352]
[1753452325453,3.61033754,3697.9,3697.5,0.1352]
[1753452325629,0.4455,3697.9,3697.5,0.1352]
[1753452325829,2.70425777,3697.9,3697.5,0.1352]
[1753452326049,0.1352,3698.1,3697.5,0.1352]
[1753452326260,2.70417222,3698.0,3697.5,0.1352]
[1753452326472,0.1352,3698.1,3697.5,2.83969713]
[1753452326776,0.1352,3698.5,3697.9,0.1352]
[1753452327064,3.1352,3698.5,3697.9,0.1352]
[1753452327470,0.7964,3698.3,3695.5,0.7834]
[1753452327690,0.55,3696.1,3695.9,0.1352]
[1753452327967,0.55,3696.1,3695.1,1.2733]
[1753452327968,0.1352,3695.8,3695.2,0.1352]
[1753452328138,2.70583819,3695.8,3695.4,0.1352]
[1753452328329,0.55,3696.3,3695.5,0.4899]
[1753452328533,2.70575192,3695.9,3695.6,0.1352]
[1753452328736,2.70577664,3695.8,3695.6,0.1352]
[1753452328968,2.70563608,3696.0,3695.7,0.4899]
[1753452329144,0.55,3696.5,3695.7,0.4732]
[1753452329347,0.1352,3696.4,3695.9,0.1352]
[1753452329562,0.1352,3696.4,3695.9,0.6251]
[1753452329760,2.70548658,3696.2,3695.9,0.1352]
[1753452329944,2.70542114,3696.3,3695.9,0.1352]
[1753452330330,0.9061,3696.2,3695.3,4.698]
[1753452330643,0.9061,3696.2,3695.8,0.1352]
[1753452330861,2.70557511,3696.1,3695.8,0.1352]
[1753452331047,2.70542344,3696.3,3695.8,0.6251]
[1753452331237,2.70527916,3696.5,3695.8,0.6251]
[1753452331434,2.84047916,3696.5,3695.9,0.4899]
[1753452331847,0.1352,3696.5,3695.9,0.4899]
[1753452332052,0.1352,3696.5,3696.0,0.1352]
[1753452332335,2.84047127,3696.5,3696.0,0.1352]
[1753452332539,2.70542074,3696.3,3696.0,0.1352]
[1753452333046,3.61152074,3696.3,3696.0,0.1352]
[1753452333360,2.70535146,3696.4,3696.0,0.1352]
[1753452333562,2.70524981,3696.6,3696.0,0.1352]
[1753452333747,2.84044981,3696.6,3696.0,0.1352]
[1753452333947,2.70535359,3696.4,3696.0,0.1352]
[1753452334152,0.1352,3696.6,3696.0,0.1352]
[1753452334552,2.70547524,3696.3,3696.0,0.1352]
[1753452335179,2.84039717,3696.6,3696.0,0.1352]
[1753452335180,2.70534634,3696.4,3696.0,0.1352]
[1753452335493,2.70534634,3696.4,3695.3,4.698]
[1753452335494,2.70571365,3695.9,3695.2,2.70619664]
[1753452335845,2.70580072,3695.8,3695.1,3.51673196]
[1753452336039,2.70571735,3695.9,3695.2,2.70616401]
[1753452336246,0.55,3696.3,3695.3,0.4859]
[1753452336441,2.7055655,3696.1,3695.6,0.001]
[1753452337240,2.7053791,3696.4,3695.7,3.66121872]
[1753452337441,5.1436,3696.6,3695.7,0.9554]
[1753452337640,0.8303,3696.7,3695.7,0.49655847]
[1753452337838,3.0,3696.7,3695.9,3.49685038]
[1753452338043,5.70511188,3696.8,3695.9,3.49685038]
[1753452338242,3.0,3696.8,3696.2,2.70543424]
[1753452338446,2.70497637,3696.9,3696.0,0.9554]
[1753452338685,3.25494551,3697.0,3696.4,2.70533421]
[1753452338985,3.0,3697.0,3696.4,2.70529972]
[1753452339195,2.7047989,3697.2,3696.3,0.4859]
[1753452339394,7.3707989,3697.2,3696.6,2.70518219]
[1753452339689,7.3707989,3697.2,3696.4,2.70530831]
[1753452339690,2.70490843,3697.0,3696.4,2.70530831]
[1753452340192,2.7052567,3696.6,3695.9,3.49688395]
[1753452340392,2.70504219,3696.8,3696.1,2.70554601]
[1753452340393,3.17424219,3696.8,3696.1,2.70554601]
[1753452340560,2.70512826,3696.7,3696.1,2.70554601]
[1753452340755,2.70533649,3696.4,3695.9,0.7912]
[1753452340973,2.70526858,3696.5,3695.9,3.49688618]
[1753452341174,2.70526858,3696.5,3695.9,0.7912]
[1753452341344,2.70535716,3696.4,3695.8,2.70574561]
[1753452341554,2.70526955,3696.5,3695.9,2.7056985]
[1753452341784,0.7528,3696.6,3696.0,2.70557774]
[1753452342352,0.4716,3696.7,3695.8,2.70577412]
[1753452342547,1.0192,3697.1,3696.4,2.70528769]
[1753452342770,2.70484211,3697.1,3696.4,2.70528769]
[1753452342981,2.70482269,3697.1,3696.3,0.4859]
[1753452343175,2.70505352,3696.8,3696.3,0.4859]
[1753452343492,2.70483033,3697.1,3696.5,2.70523017]
[1753452343663,2.70483033,3697.1,3695.8,2.70573485]
[1753452343664,0.8115,3696.9,3695.5,0.4859]
[1753452343848,0.8115,3696.9,3695.7,0.51295847]
[1753452343849,2.70523213,3696.6,3695.7,0.51295847]
[1753452344045,3.25512433,3696.7,3695.8,2.70577412]
[1753452344281,2.70512723,3696.7,3696.0,2.70558123]
[1753452344491,2.70512723,3696.7,3695.9,0.512957]
[1753452344492,2.70530818,3696.5,3695.9,0.4859]
[1753452344674,2.70533638,3696.4,3695.9,0.4859]
[1753452344988,0.4692,3696.7,3695.6,1.2999]
[1753452345295,0.9408,3696.7,3695.6,1.2999]
[1753452345501,0.55,3696.1,3695.6,0.001]
[1753452345787,2.70579942,3695.8,3695.6,0.001]
[1753452346001,0.1352,3696.0,3695.6,0.001]
[1753452346002,1.076,3696.0,3695.6,0.001]
[1753452346497,0.1352,3696.3,3695.7,0.1352]
[1753452346676,2.7056038,3696.1,3695.7,0.6211]
[1753452347089,2.7056038,3696.1,3695.7,0.1352]
[1753452347279,2.70550678,3696.2,3695.7,0.1352]
[1753452347487,2.7055737,3696.1,3695.7,0.1352]
[1753452347799,2.70577412,3695.8,3695.7,0.1352]
[1753452347962,2.70570142,3695.9,3695.7,0.1352]
[1753452348296,3.64645812,3696.0,3695.7,0.1352]
[1753452348497,0.9408,3696.0,3695.7,0.1352]
[1753452348794,2.70570473,3695.9,3695.7,0.1352]
[1753452348995,2.70577412,3695.8,3695.7,0.1352]
[1753452349201,2.70584733,3695.7,3695.6,0.001]
[1753452349363,3.64664733,3695.7,3695.6,0.001]
[1753452349564,2.7057803,3695.8,3695.6,0.001]
[1753452349792,2.70584733,3695.7,3695.6,0.001]
[1753452349992,2.70580082,3695.8,3695.6,0.001]
[1753452350505,2.70572307,3695.9,3695.6,0.001]
[1753452350665,2.7057744,3695.8,3695.6,0.001]
[1753452351065,3.46884733,3695.7,3695.6,0.001]
[1753452351304,0.763,3695.7,3695.6,0.001]
[1753452351506,4.95964733,3695.7,3695.6,0.001]
[1753452351679,5.09484733,3695.7,3695.6,0.001]
[1753452352293,0.1352,3695.7,3695.6,0.001]
[1753452352496,2.70584733,3695.7,3695.6,0.001]
[1753452352797,0.1352,3695.9,3695.6,0.001]
[1753452352964,2.70584733,3695.7,3695.6,0.001]
[1753452353714,3.64659669,3695.8,3695.6,0.001]
[1753452353865,2.70579669,3695.8,3695.6,0.001]
[1753452354184,2.70578128,3695.8,3695.6,0.001]
[1753452354495,3.64664733,3695.7,3695.6,0.001]
[1753452354704,2.84091733,3695.9,3695.6,0.001]
[1753452355279,0.1352,3695.9,3695.6,0.001]
[1753452355604,2.70584733,3695.7,3695.6,0.001]
[1753452355766,2.84104733,3695.7,3695.6,0.001]
[1753452356204,3.78184733,3695.7,3695.6,0.001]
[1753452358766,4.33184733,3695.7,3695.6,0.001]
[1753452360309,3.39104733,3695.7,3695.6,0.001]
[1753452360473,4.33184733,3695.7,3695.6,0.001]
[1753452361029,3.39104733,3695.7,3695.6,0.001]
[1753452361515,4.33184733,3695.7,3695.6,0.001]
[1753452362482,0.1352,3695.7,3695.6,0.001]
[1753452362799,2.70584733,3695.7,3695.6,0.001]
[1753452363832,7.41990534,3695.9,3695.6,0.4869]
[1753452363984,2.70580999,3695.8,3695.6,0.4869]
[1753452364185,2.70584733,3695.7,3695.6,0.001]
[1753452364399,4.19664733,3695.7,3695.6,0.001]
[1753452364586,4.33184733,3695.7,3695.6,0.001]
[1753452366217,7.41704733,3695.7,3695.6,0.001]
[1753452366421,7.41004733,3695.7,3695.6,0.001]
[1753452367287,2.84104733,3695.7,3695.6,0.001]
[1753452367520,7.41104733,3695.7,3695.6,0.001]
[1753452367694,9.65954733,3695.7,3695.6,0.001]
[1753452369740,9.18794733,3695.7,3695.6,0.001]
[1753452369943,3.39104733,3695.7,3695.6,0.001]
[1753452370090,7.94804733,3695.7,3695.6,0.001]
[1753452370734,3.39104733,3695.7,3695.6,0.001]
[1753452370941,7.94604733,3695.7,3695.6,0.001]
[1753452371090,2.84104733,3695.7,3695.6,0.001]
[1753452371297,7.39304733,3695.7,3695.6,0.001]
[1753452371496,2.84104733,3695.7,3695.6,0.001]
[1753452371712,7.39104733,3695.7,3695.6,0.001]
[1753452371912,4.55,3695.7,3695.6,0.4994]
[1753452372111,7.25584733,3695.7,3695.6,0.4994]
[1753452372351,4.55,3695.7,3695.6,0.4994]
[1753452372532,0.1352,3695.9,3695.6,0.001]
[1753452372837,2.70540811,3696.3,3695.7,1.7299]
[1753452373012,2.70540811,3696.3,3695.8,0.6336]
[1753452373345,2.70542093,3696.3,3695.9,0.4984]
[1753452373516,2.70553557,3696.2,3695.9,0.4984]
[1753452373712,2.70544946,3696.3,3695.8,0.5971]
[1753452374040,0.1352,3696.4,3696.0,0.4984]
[1753452374199,0.801,3697.2,3696.1,2.73256665]
[1753452374400,2.70495388,3697.0,3696.3,2.70534884]
[1753452374616,7.38103428,3697.1,3696.5,2.84045617]
[1753452374824,0.1352,3697.1,3696.6,3.20358855]
[1753452375102,4.54,3697.2,3696.7,0.9603]
[1753452375305,2.70469313,3697.3,3696.9,0.8157]
[1753452375306,0.1352,3697.3,3696.9,0.8157]
[1753452375498,0.002,3697.5,3697.0,0.9603]
[1753452375698,0.002,3697.5,3697.4,2.70460323]
[1753452375897,0.002,3697.5,3697.4,3.53784926]
[1753452376113,0.002,3697.5,3697.4,5.80753696]
[1753452376318,0.002,3697.5,3697.4,5.78049093]
[1753452376616,0.002,3697.5,3697.4,10.31949093]
[1753452377561,0.002,3697.5,3697.4,13.31949093]
[1753452378057,0.002,3697.5,3697.4,8.78049093]
[1753452378225,0.002,3697.5,3697.4,13.31449093]
[1753452385438,0.002,3697.5,3697.4,8.78049093]
[1753452385631,0.002,3697.5,3697.4,12.82259093]
[1753452385826,0.002,3697.5,3697.4,0.1352]
[1753452386031,0.002,3697.5,3697.4,4.6392]
[1753452386261,0.002,3697.5,3697.4,7.34380323]
[1753452387048,0.002,3697.5,3697.4,9.13160323]
[1753452388065,0.002,3697.5,3697.4,8.66970323]
[1753452388372,0.002,3697.5,3697.4,10.1071484]
[1753452388540,0.002,3697.5,3697.4,9.6087484]
[1753452389073,0.002,3697.5,3697.4,10.5690484]
[1753452389839,0.002,3697.5,3697.4,13.5690484]
[1753452390236,0.002,3697.5,3697.4,13.0941484]
[1753452390436,0.002,3697.5,3697.4,12.5957484]
[1753452391169,0.002,3697.5,3697.4,13.5560484]
[1753452393043,0.002,3697.5,3697.4,12.2606484]
[1753452393248,0.002,3697.5,3697.4,8.2375484]
[1753452393574,0.002,3697.5,3697.4,11.7612484]
[1753452393755,0.002,3697.5,3697.4,11.7712484]
[1753452393950,0.4363,3697.5,3696.7,1.132362]
[1753452394179,0.9079,3697.5,3697.1,2.70477708]
[1753452394482,0.002,3697.5,3697.2,7.20571243]
[1753452394808,0.002,3697.5,3697.2,4.501]
[1753452395094,0.7964,3698.2,3697.2,4.501]
[1753452395095,0.7964,3698.2,3697.7,2.70437107]
[1753452395268,0.7964,3698.2,3697.8,4.76943711]
[1753452395465,0.4343,3698.1,3697.8,4.76943711]
[1753452396244,0.4343,3698.1,3697.8,7.47371568]
[1753452396474,0.4277,3698.5,3697.9,2.70423754]
[1753452396675,0.4277,3698.5,3697.8,4.76943711]
[1753452396978,2.70396458,3698.3,3697.9,0.47694371]
[1753452397174,0.9009,3698.2,3697.9,0.47694371]
[1753452397375,2.70402474,3698.2,3697.9,0.47694371]
[1753452397576,0.9009,3698.1,3697.9,0.47694371]
[1753452397740,0.9009,3698.1,3697.8,4.76943711]
[1753452397940,0.9009,3698.0,3697.8,4.76943711]
[1753452398148,0.9009,3697.9,3697.8,4.499]
[1753452398478,0.9009,3697.9,3697.8,4.492]
[1753452398690,4.38977759,3697.9,3697.0,2.70484554]
[1753452398888,2.70445636,3697.7,3697.1,4.487]
[1753452399091,3.60524048,3697.8,3697.2,0.71918455]
[1753452399292,2.70460433,3697.4,3697.1,4.487]
[1753452399666,0.9009,3697.3,3697.1,4.487]
[1753452400069,2.70441023,3697.7,3697.1,4.487]
[1753452400257,0.9009,3697.8,3697.1,4.487]
[1753452400456,2.70450632,3697.6,3696.9,0.001]
[1753452400657,0.55,3697.6,3696.9,0.001]
[1753452400862,2.70489586,3697.0,3696.9,0.001]
[1753452401381,3.60579586,3697.0,3696.9,0.001]
[1753452401578,0.9009,3697.0,3696.9,0.001]
[1753452401777,0.7739,3697.3,3696.9,0.001]
[1753452401983,0.9009,3697.9,3697.1,2.70480124]
[1753452402178,2.70435775,3697.8,3697.1,3.31125571]
[1753452402394,3.60516562,3697.9,3697.2,2.70474727]
[1753452402565,2.70435843,3697.8,3697.3,4.484]
[1753452402760,0.9009,3697.9,3697.3,4.484]
[1753452403161,0.803,3698.0,3697.4,0.02704603]
[1753452403380,0.002,3698.0,3697.6,2.70445694]
[1753452403577,0.002,3698.0,3697.8,2.70425205]
[1753452403777,0.002,3698.0,3697.9,2.70423754]
[1753452404069,0.002,3698.0,3697.9,2.86647991]
[1753452404398,0.002,3698.0,3697.9,3.30363754]
[1753452404600,0.002,3698.0,3697.9,4.39796937]
[1753452404897,0.002,3698.0,3697.9,5.66131174]
[1753452405100,0.002,3698.0,3697.9,8.63426937]
[1753452405265,1e-08,3698.0,3697.9,8.63426937]
[1753452406061,1e-08,3698.0,3697.9,9.18426937]
[1753452406261,0.002,3698.8,3698.5,2.70374443]
[1753452406262,1e-08,3698.8,3698.5,2.70374443]
[1753452406469,0.002,3699.3,3699.2,6.50648719]
[1753452406689,1e-08,3699.3,3699.2,11.11868719]
[1753452407067,1e-08,3699.3,3699.2,12.03618719]
[1753452408403,1e-08,3699.3,3699.2,12.03418719]
[1753452408698,1e-08,3699.3,3699.2,9.03294409]
[1753452409212,1e-08,3699.3,3699.2,13.50394409]
[1753452410898,1e-08,3699.5,3699.4,2.70314104]
[1753452411208,1e-08,3699.5,3699.4,7.17414104]
[1753452411382,1e-08,3699.5,3699.4,7.63834104]
[1753452411701,1e-08,3699.5,3699.4,9.65349955]
[1753452412323,1e-08,3699.5,3699.4,10.41059955]
[1753452412470,1e-08,3699.8,3699.7,3.46002185]
[1753452412671,1e-08,3699.8,3699.7,6.46002185]
[1753452412872,1e-08,3699.8,3699.7,11.84752185]
[1753452413108,1e-08,3699.8,3699.7,13.72907511]
[1753452415002,1e-08,3699.8,3699.7,9.25907511]
[1753452415204,1e-08,3699.8,3699.7,13.72807511]
[1753452416835,1e-08,3699.8,3699.7,9.25907511]
[1753452416997,1e-08,3699.8,3699.7,13.72807511]
[1753452417360,1e-08,3699.8,3699.7,8.80577511]
[1753452417623,1e-08,3699.8,3699.7,8.34157511]
[1753452417930,1e-08,3699.8,3699.7,12.81057511]
[1753452418586,1e-08,3699.8,3699.7,13.27477511]
[1753452418826,1e-08,3699.8,3699.7,13.72807511]
[1753452419212,1e-08,3699.8,3699.7,14.27807511]
[1753452419527,1e-08,3700.6,3700.5,2.70233752]
[1753452419725,1e-08,3700.6,3700.5,10.78705385]
[1753452420023,1e-08,3700.6,3700.5,11.70455385]
[1753452420327,1e-08,3700.6,3700.5,12.25455385]
[1753452420503,1e-08,3700.6,3700.5,13.04305385]
[1753452420847,1e-08,3701.4,3701.3,5.70175343]
[1753452421141,1e-08,3701.4,3701.3,12.44693142]
[1753452421354,1e-08,3701.4,3701.3,13.36443142]
[1753452421563,1e-08,3701.4,3701.3,13.49963142]
[1753452421859,1e-08,3701.4,3700.5,3.31905385]
[1753452421860,0.815,3701.2,3699.5,0.7831]
[1753452422033,0.815,3701.2,3698.6,0.4642]
[1753452422034,0.815,3701.0,3699.4,3.077]
[1753452422235,0.815,3700.2,3699.3,4.467]
[1753452422547,0.9009,3700.1,3699.4,4.467]
[1753452422715,0.9009,3700.0,3699.5,4.467]
[1753452423056,0.9009,3699.9,3699.3,2.70319227]
[1753452423361,0.9009,3699.9,3699.4,4.467]
[1753452423648,0.9009,3699.9,3699.0,2.70343284]
[1753452423649,2.70293834,3699.7,3699.1,3.0]
[1753452423845,0.9009,3699.8,3698.2,2.7039899]
[1753452423846,0.9009,3699.8,3699.2,4.467]
[1753452424048,1.2882,3700.2,3699.3,3.02703214]
[1753452424341,0.4277,3700.3,3699.3,3.02703214]
[1753452424342,0.4277,3700.3,3699.4,0.821]
[1753452424571,0.002,3700.6,3700.2,2.70250456]
[1753452424877,0.002,3700.6,3700.5,2.70233752]
[1753452425020,0.002,3700.6,3700.5,7.17033752]
[1753452425219,0.002,3700.6,3700.5,4.468]
[1753452425807,0.8011,3700.5,3699.4,0.7997]
[1753452426051,0.8011,3700.5,3699.6,7.468]
[1753452426052,0.9009,3700.4,3699.6,7.468]
[1753452426217,2.70253986,3700.3,3699.6,4.63576232]
[1753452426419,0.9329,3700.2,3699.6,4.63576232]
[1753452426623,3.63559908,3700.1,3699.6,4.63576232]
[1753452426841,0.9329,3700.0,3699.6,4.63576232]
[1753452427014,3.19683358,3700.4,3699.7,3.25423736]
[1753452427215,3.63533358,3700.4,3699.7,3.25423736]
[1753452427416,3.63533358,3700.4,3699.7,0.55136855]
[1753452427641,2.70250067,3700.3,3699.7,0.55136855]
[1753452427844,2.70250067,3700.3,3699.0,1.2639]
[1753452427845,0.8011,3700.5,3699.0,0.7997]
[1753452428043,0.8011,3700.5,3699.1,7.17035685]
[1753452428044,0.9329,3700.3,3699.1,7.17035685]
[1753452428256,2.70283839,3699.9,3699.2,3.0]
[1753452428554,3.63577986,3699.8,3699.1,4.467]
[1753452428775,0.9329,3699.8,3699.2,3.0]
[1753452429282,0.4385,3700.1,3699.2,3.0]
[1753452429431,0.9329,3700.1,3699.3,2.73019169]
[1753452429637,0.9329,3700.1,3699.2,3.0]
[1753452429638,0.9329,3700.1,3699.5,2.70305896]
[1753452429832,0.9329,3700.1,3699.6,2.70298254]
[1753452430034,0.9329,3700.1,3699.3,2.70320344]
[1753452430035,0.9329,3700.1,3699.7,4.467]
[1753452430262,0.9329,3700.0,3699.7,4.467]
[1753452430462,0.9329,3699.9,3699.7,4.467]
[1753452430662,0.8299,3699.7,3699.4,4.467]
[1753452430878,0.9329,3699.6,3699.4,4.467]
[1753452431949,0.9329,3699.6,3699.5,0.1352]
[1753452432607,0.9329,3699.6,3698.6,3.0]
[1753452432896,3.63597374,3699.5,3698.9,4.467]
[1753452433070,2.7032932,3699.2,3698.9,4.467]
[1753452433253,3.63626124,3699.1,3698.9,4.467]
[1753452433452,0.9329,3699.0,3698.9,4.467]
[1753452433657,2.70312964,3699.5,3698.9,4.467]
[1753452433855,2.70330776,3699.2,3698.9,4.467]
[1753452434364,3.63627397,3699.1,3698.9,4.467]
[1753452434669,1.7628,3699.7,3698.9,4.81419904]
[1753452434877,2.70311601,3699.5,3698.9,4.81419904]
[1753452435057,2.70301378,3699.6,3698.9,7.51766594]
[1753452435260,1.2684,3699.7,3698.9,4.81419904]
[1753452435452,0.8316,3700.1,3699.0,3.98223433]
[1753452435690,2.7024892,3700.3,3699.1,0.98727694]
[1753452435915,2.70282174,3699.9,3699.2,0.4961]
[1753452436056,2.70298144,3699.7,3699.2,4.467]
[1753452436271,0.9329,3699.6,3699.2,4.467]
[1753452436889,0.4385,3699.6,3699.2,4.467]
[1753452437104,0.7592,3699.8,3699.3,0.77373214]
[1753452437411,0.7592,3699.8,3699.3,3.47689916]
[1753452437567,1.6921,3699.8,3699.3,0.7467]
[1753452438079,0.8103,3700.2,3699.4,0.4961]
[1753452438294,0.8103,3700.2,3699.8,2.70279437]
[1753452438605,3.63524374,3700.5,3700.1,2.70258005]
[1753452438606,1.7432,3700.5,3700.1,2.70258005]
[1753452438808,0.9329,3700.4,3700.0,2.72970701]
[1753452439012,0.9329,3700.4,3699.9,7.71034122]
[1753452439217,0.8103,3700.5,3699.9,7.71034122]
[1753452439422,0.9329,3700.3,3700.0,2.70268836]
[1753452439718,0.9329,3700.2,3700.0,2.7027012]
[1753452439921,0.8103,3700.5,3700.1,2.7025824]
[1753452440412,0.9329,3700.4,3700.0,2.7026421]
[1753452440615,0.9329,3700.4,3700.1,2.70260571]
[1753452440790,0.8103,3700.5,3700.1,2.70262965]
[1753452441107,0.8103,3700.5,3700.2,2.70249947]
[1753452441276,0.8103,3700.5,3700.2,4.467]
[1753452441618,1.7432,3700.5,3700.2,4.467]
[1753452442010,0.8103,3700.5,3700.3,2.70247327]
[1753452442310,0.8103,3700.5,3700.2,4.467]
[1753452442618,0.8103,3700.5,3700.3,0.1352]
[1753452443116,0.8103,3700.5,3700.4,2.70241055]
[1753452443614,0.8103,3700.5,3700.3,2.83767589]
[1753452443831,0.8103,3700.5,3700.3,0.1352]
[1753452444036,0.9329,3700.4,3700.3,0.1352]
[1753452444214,0.9329,3700.4,3698.9,0.7972]
[1753452444215,0.7534,3700.3,3698.9,0.7972]
[1753452444415,1.8215,3700.3,3699.6,0.1352]
[1753452444731,3.25427401,3700.6,3699.7,4.49302921]
[1753452444732,0.002,3700.6,3699.7,4.49302921]
[1753452444936,0.002,3700.6,3700.3,2.70243693]
[1753452445125,0.002,3700.6,3700.4,2.70235689]
[1753452445434,0.002,3700.6,3700.5,2.83753752]
[1753452445596,0.002,3700.6,3700.5,3.39423975]
[1753452445795,0.002,3700.6,3700.5,8.15576312]
[1753452446041,0.4944,3701.9,3701.3,2.70175343]
[1753452446042,0.7646,3701.9,3701.3,2.70175343]
[1753452446325,0.4964,3702.2,3701.3,2.70175343]
[1753452446326,0.002,3702.2,3701.3,10.94705343]
[1753452446526,0.002,3702.2,3701.3,11.90225343]
[1753452446833,0.002,3702.2,3701.3,13.49786287]
[1753452447462,0.002,3702.2,3701.3,9.03186287]
[1753452447591,0.002,3702.2,3701.3,13.49686287]
[1753452447794,0.7831,3702.0,3701.3,13.03776287]
[1753452448205,0.9329,3701.9,3701.3,8.76236287]
[1753452448729,0.7831,3702.0,3701.3,9.25846287]
[1753452448933,0.002,3702.2,3701.3,12.71756287]
[1753452449105,0.002,3702.2,3701.3,13.53866287]
[1753452449891,0.002,3702.2,3701.3,4.29736287]
[1753452450096,0.8019,3702.0,3701.3,7.30095343]
[1753452450322,0.8019,3702.0,3701.3,10.30095343]
[1753452450630,1.2404,3702.0,3701.3,10.30095343]
[1753452451623,1.2404,3702.0,3701.3,10.79705343]
[1753452451936,1.2404,3702.0,3701.3,10.30095343]
[1753452452656,1.2404,3702.0,3701.3,4.5992]
[1753452452841,0.4385,3701.7,3701.3,4.5992]
[1753452453042,0.4385,3701.7,3701.3,7.30095343]
[1753452455134,0.8019,3702.0,3701.3,7.30095343]
[1753452455469,0.8019,3702.0,3701.3,7.79705343]
[1753452455624,0.8019,3702.0,3701.3,2.83695343]
[1753452455825,0.8019,3702.0,3701.3,7.29895343]
[1753452456038,0.4686,3701.9,3701.3,4.5972]
[1753452456261,1.7219,3702.0,3701.3,7.29895343]
[1753452457030,4.42315384,3702.0,3701.3,7.29895343]
[1753452457282,0.002,3702.1,3701.3,11.29903273]
[1753452457510,0.002,3702.1,3701.3,13.03473273]
[1753452458865,0.002,3702.1,3701.3,13.58473273]